fUST/lending_fUST_20250803
["ID","MTS","AMOUNT","RATE_DAILY","PERIOD"]
[377068582,1754232640710,-1000.0,0.00034821,5]
[377068583,1754232640719,-1000.0,0.00034821,5]
[377068584,1754232640728,-94.55708173,0.00034821,5]
[377068585,1754232640786,-656.49493728,0.00034821,5]
[377068586,1754232640795,-1081.99553908,0.00034821,5]
[377068587,1754232640805,-501.98962838,0.00034821,5]
[377068588,1754232640814,-1000.0,0.00034821,5]
[377068589,1754232640824,-382.72905524,0.00034821,5]
[377068590,1754232640836,-617.27094476,0.00034821,5]
[377068591,1754232640845,-1000.0,0.00034821,5]
[377068592,1754232640854,-319.05938,0.00034821,5]
[377068613,1754232643098,-150.0,0.00033682,2]
[377068615,1754232643108,-635.1320611,0.00034821,5]
[377068616,1754232643119,-611.66654904,0.00034821,5]
[377068617,1754232643128,-1000.0,0.00034821,5]
[377068618,1754232643138,-1000.0,0.00034821,5]
[377068619,1754232643148,-1000.0,0.00034821,5]
[377068620,1754232643158,-818.50685782,0.00034821,5]
[377068622,1754232643170,-181.49314218,0.00034821,5]
[377068624,1754232643181,-1000.0,0.00034821,5]
[377068625,1754232643190,-644.1965881,0.00034821,5]
[377068626,1754232643200,-1000.0,0.00034821,5]
[377068627,1754232643209,-503.00324452,0.00034821,5]
[377068629,1754232643219,-1000.0,0.00034821,5]
[377068631,1754232643230,-564.84152329,0.00034821,5]
[377068632,1754232643240,-1049.88997932,0.00034821,5]
[377068633,1754232643252,-503.48395445,0.00034821,5]
[377068634,1754232643262,-1000.0,0.00034821,5]
[377068635,1754232643271,-1000.0,0.00034821,5]
[377068636,1754232643282,-1000.0,0.00034821,5]
[377068637,1754232643292,-1000.0,0.00034821,5]
[377068638,1754232643301,-1000.0,0.00034821,5]
[377068639,1754232643311,-1000.0,0.00034821,5]
[377068640,1754232643320,-201.73428693,0.00034821,5]
[377068641,1754232643331,-500.0,0.00034821,2]
[377068642,1754232643341,-348.59080645,0.00034873,5]
[377068643,1754232643351,-150.0,0.00034873,5]
[377068644,1754232643361,-168.39619376,0.00034873,5]
[377068645,1754232643370,-500.0,0.00034873,5]
[377068646,1754232643384,-501.3284403,0.00034873,5]
[377068647,1754232643393,-500.0,0.00034873,5]
[377068648,1754232643403,-500.0,0.00034873,5]
[377068649,1754232643413,-500.0,0.00034873,5]
[377068650,1754232643423,-500.0,0.00034873,5]
[377068651,1754232643433,-500.0,0.00034873,5]
[377068652,1754232643443,-500.0,0.00034873,5]
[377068653,1754232643453,-500.0,0.00034873,5]
[377068654,1754232643463,-500.0,0.00034873,5]
[377068655,1754232643475,-500.0,0.00034873,5]
[377068656,1754232643485,-500.0,0.00034873,5]
[377068657,1754232643495,-500.0,0.00034873,5]
[377068658,1754232643505,-500.0,0.00034873,5]
[377068659,1754232643514,-500.0,0.00034873,5]
[377068660,1754232643523,-500.0,0.00034873,5]
[377068661,1754232643533,-500.0,0.00034873,5]
[377068662,1754232643542,-22.40037448,0.00034873,5]
[377068663,1754232643555,-477.59962552,0.00034873,5]
[377068664,1754232643564,-620.30799318,0.00034873,5]
[377068665,1754232643574,-500.0,0.00034873,5]
[377068666,1754232643583,-151.0,0.00034911,2]
[377068667,1754232643592,-151.0,0.00034911,2]
[377068668,1754232643601,-1176.95,0.00034917,120]
[377068669,1754232643611,-650.94591365,0.00035,2]
[377068670,1754232643620,-200.0,0.00035043,120]
[377068671,1754232643629,-177.2,0.0003505,60]
[377068672,1754232643639,-151.0,0.000351,120]
[377068673,1754232643652,-960.0,0.00035189,2]
[377068674,1754232643662,-200.0,0.00035301,15]
[377068675,1754232643672,-200.0,0.00035301,15]
[377068676,1754232643682,-200.0,0.00035301,15]
[377068677,1754232643691,-379.0,0.00035301,15]
[377068678,1754232643701,-308.74271765,0.00035328,120]
[377068679,1754232643713,-779.33406792,0.00035328,120]
[377068680,1754232646006,-88.87321443,0.00035328,120]
[377068681,1754232646016,-845.61421683,0.00035358,3]
[377068700,1754233550105,-972.02,0.00023582,2]
[377068701,1754233550126,-509.51,0.000282,2]
[377068702,1754233550147,-198.34699579,0.00030175,5]
[377068703,1754233607106,-183.9536673,0.000282,2]
[377068708,1754233759357,472.7,0.00030137,120]
[377068721,1754233832282,-150.0,0.00028075,2]
[377068723,1754233832292,-440.17,0.000282,2]
[377068725,1754233832302,-200.0,0.00031161,120]
[377068727,1754233832312,-182.489654,0.00031489,2]
[377068729,1754233832321,-151.0,0.00031625,2]
[377068731,1754233832331,-151.0,0.00031625,2]
[377068733,1754233832341,-151.0,0.00031625,2]
[377068735,1754233832350,-151.0,0.00031625,2]
[377068737,1754233832360,-151.0,0.00031625,2]
[377068739,1754233832369,-151.0,0.00031625,2]
[377068742,1754233832379,-356.0,0.00031643,3]
[377068744,1754233832389,-400.0,0.00031643,2]
[377068746,1754233832399,-6317.5941028,0.00031644,2]
[377068748,1754233832408,-964.6454802,0.0003173,30]
[377068750,1754233832418,-160.0,0.00031867,2]
[377068752,1754233832427,-210.55573176,0.000319,25]
[377068753,1754233832437,-237.37,0.00032053,2]
[377068754,1754233832447,-231.62108626,0.00032457,2]
[377068755,1754233832457,-160.0,0.00032577,2]
[377068756,1754233832466,-219.858862,0.0003296,2]
[377068757,1754233832476,-200.0,0.00033225,15]
[377068758,1754233832488,-200.0,0.00033225,15]
[377068759,1754233832498,-200.0,0.00033225,15]
[377068760,1754233832508,-160.0,0.00033771,2]
[377068761,1754233832517,-150.884,0.00033791,2]
[377068762,1754233832527,-150.0,0.00033791,2]
[377068763,1754233832537,-250.0,0.00033791,2]
[377068764,1754233832547,-260.567,0.00033791,2]
[377068765,1754233832557,-218.796,0.00033791,2]
[377068766,1754233832567,-2147.0,0.00033791,2]
[377068767,1754233832576,-970.0,0.00033791,2]
[377068768,1754233832586,-407.0,0.00033817,2]
[377068769,1754233832596,-180.421,0.00034025,37]
[377068770,1754233832606,-560.0,0.00034046,2]
[377068771,1754233832615,-260.0,0.00034319,2]
[377068772,1754233832626,-277.7637517,0.0003434,30]
[377068773,1754233832635,-500.0,0.00034567,5]
[377068774,1754233832645,-200.0,0.00034583,120]
[377068775,1754233832655,-500.0,0.00034773,5]
[377068776,1754233832664,-504.12015115,0.00034773,5]
[377068777,1754233832674,-500.8401187,0.00034773,5]
[377068778,1754233832684,-581.92127721,0.00034773,5]
[377068779,1754233832693,-500.0,0.00034773,5]
[377068780,1754233832703,-500.0,0.00034773,5]
[377068781,1754233832712,-346.25393263,0.00034773,5]
[377068782,1754233832722,-525.25878385,0.00034773,5]
[377068783,1754233832731,-505.18533777,0.00034773,5]
[377068784,1754233832741,-500.0,0.00034773,5]
[377068785,1754233832755,-501.38271662,0.00034773,5]
[377068786,1754233832765,-500.0,0.00034773,5]
[377068787,1754233832774,-1000.0,0.000348,5]
[377068788,1754233832783,-1000.0,0.000348,5]
[377068789,1754233832794,-1000.0,0.000348,5]
[377068790,1754233832803,-1000.0,0.000348,5]
[377068791,1754233832812,-1000.0,0.000348,5]
[377068792,1754233832822,-1000.0,0.000348,5]
[377068793,1754233832831,-1000.0,0.000348,5]
[377068794,1754233832840,-1000.0,0.000348,5]
[377068795,1754233832850,-1000.0,0.000348,5]
[377068796,1754233832860,-1000.0,0.000348,5]
[377068797,1754233832870,-1000.0,0.000348,5]
[377068798,1754233832879,-1000.0,0.000348,5]
[377068799,1754233832893,-1000.0,0.000348,5]
[377068800,1754233832902,-1000.0,0.000348,5]
[377068801,1754233832912,-1000.0,0.000348,5]
[377068802,1754233832921,-1000.0,0.000348,5]
[377068803,1754233832930,-1000.0,0.000348,5]
[377068804,1754233832939,-1000.0,0.000348,5]
[377068805,1754233832949,-1000.0,0.000348,5]
[377068806,1754233832959,-1000.0,0.000348,5]
[377068807,1754233832968,-1000.0,0.000348,5]
[377068808,1754233832978,-1000.0,0.000348,5]
[377068809,1754233832988,-1000.0,0.000348,5]
[377068810,1754233833134,-1000.0,0.000348,5]
[377068811,1754233833145,-1000.0,0.000348,5]
[377068812,1754233833155,-1000.0,0.000348,5]
[377068813,1754233833164,-1000.0,0.000348,5]
[377068814,1754233833174,-1000.0,0.000348,5]
[377068815,1754233833184,-1000.0,0.000348,5]
[377068816,1754233833193,-1000.0,0.000348,5]
[377068817,1754233833203,-1000.0,0.000348,5]
[377068818,1754233833212,-1000.0,0.000348,5]
[377068819,1754233833222,-1000.0,0.000348,5]
[377068820,1754233833233,-1000.0,0.000348,5]
[377068821,1754233833243,-1007.16,0.000348,5]
[377068822,1754233833253,-360.0,0.00034867,2]
[377068823,1754233833264,-480.09650551,0.00035129,2]
[377068824,1754233833274,-277.21760349,0.00035189,2]
[377068825,1754233833283,-297.93080024,0.00035321,5]
[377068826,1754233833293,-846.82045989,0.00035321,5]
[377068827,1754233833302,-300.0,0.00035357,3]
[377068828,1754233833314,-300.0,0.00035357,3]
[377068829,1754233833323,-300.0,0.00035357,3]
[377068830,1754233833332,-300.0,0.00035357,3]
[377068831,1754233833342,-300.0,0.00035357,3]
[377068832,1754233833352,-300.0,0.00035357,3]
[377068833,1754233833361,-300.0,0.00035357,3]
[377068834,1754233833370,-300.0,0.00035357,3]
[377068835,1754233833380,-300.0,0.00035357,3]
[377068836,1754233833389,-300.0,0.00035357,3]
[377068837,1754233833399,-300.0,0.00035357,3]
[377068838,1754233833408,-300.0,0.00035357,3]
[377068839,1754233833418,-460.0,0.00035415,2]
[377068840,1754233833427,-500.0,0.00035678,5]
[377068841,1754233833437,-560.0,0.00035963,2]
[377068842,1754233833447,-163.0,0.00036,30]
[377068843,1754233833457,-152.08690128,0.00036112,2]
[377068844,1754233833466,-202.49988771,0.0003621,2]
[377068845,1754233833475,-263.39482772,0.0003624,2]
[377068846,1754233833486,-200.0,0.00036254,120]
[377068847,1754233833496,-200.0,0.0003639,15]
[377068848,1754233833505,-200.0,0.0003639,15]
[377068849,1754233833515,-200.0,0.0003639,15]
[377068850,1754233833525,-240.0,0.0003639,15]
[377068851,1754233833536,-331.76095012,0.00036471,2]
[377068852,1754233833546,-660.0,0.00036511,2]
[377068853,1754233833556,-1027.58,0.000366,7]
[377068854,1754233833566,-783.0,0.00036632,2]
[377068855,1754233833575,-150.0,0.00036791,2]
[377068856,1754233833584,-150.0,0.00036791,2]
[377068857,1754233833594,-2144.0,0.00036791,2]
[377068858,1754233833604,-970.0,0.00036791,2]
[377068859,1754233833614,-407.0,0.00036817,2]
[377068860,1754233833624,-170.559133,0.00036936,120]
[377068861,1754233833633,-312.16666667,0.00037,120]
[377068862,1754233833643,-1000.0,0.00037,120]
[377068863,1754233833653,-760.0,0.00037059,2]
[377068864,1754233833663,-200.0,0.00037164,120]
[377068865,1754233833673,-163.0,0.00037397,30]
[377068866,1754233833683,-280.5224831,0.00037469,2]
[377068867,1754233833693,-860.0,0.00037607,2]
[377068868,1754233833703,-1009.30802161,0.000378,2]
[377068869,1754233833714,-1000.0,0.00038,90]
[377068870,1754233833723,-644.0,0.000381,2]
[377068871,1754233833733,-960.0,0.00038155,2]
[377068872,1754233833745,-1962.39074559,0.000382,120]
[377068873,1754233833756,-200.0,0.00038348,120]
[377068874,1754233833766,-527.71132116,0.00038373,5]
[377068875,1754233833776,-160.0,0.00038472,2]
[377068876,1754233833785,-1382.9758527,0.0003866,7]
[377068877,1754233833795,-200.0,0.00038668,120]
[377068878,1754233833805,-1027.58,0.000387,7]
[377068879,1754233833816,-1060.0,0.00038703,2]
[377068880,1754233833826,-500.0,0.00038873,5]
[377068881,1754233833836,-500.0,0.00038873,5]
[377068882,1754233833845,-161.98013008,0.00038873,5]
[377068883,1754233833856,-500.0,0.00038873,5]
[377068884,1754233833865,-500.0,0.00038873,5]
[377068885,1754233833875,-500.0,0.00038873,5]
[377068886,1754233833884,-500.0,0.00038873,3]
[377068887,1754233833894,-500.0,0.00038873,5]
[377068888,1754233833903,-500.0,0.00038873,5]
[377068889,1754233833913,-500.0,0.00038873,5]
[377068890,1754233833922,-500.0,0.00038873,5]
[377068891,1754233833931,-501.92212611,0.00038873,5]
[377068892,1754233833941,-500.0,0.00038873,5]
[377068893,1754233833950,-500.0,0.00038873,5]
[377068894,1754233833960,-1078.87,0.00038889,120]
[377068895,1754233833969,-160.0,0.0003889,3]
[377068896,1754233833978,-20852.1751303,0.0003889,3]
[377068897,1754233833988,-260.96350297,0.0003889,3]
[377068898,1754233833998,-209.4808062,0.0003889,3]
[377068899,1754233834008,-1026.0,0.000389,23]
[377068900,1754233834019,-2306.17,0.00038963,3]
[377068901,1754233834028,-1443.04,0.00038963,3]
[377068902,1754233834038,-1443.04,0.00038963,3]
[377068903,1754233834047,-501.40624993,0.00038973,5]
[377068904,1754233834058,-500.0,0.00038973,5]
[377068905,1754233834068,-500.0,0.00038973,5]
[377068906,1754233834078,-500.0,0.00038973,5]
[377068907,1754233834087,-500.0,0.00038973,5]
[377068908,1754233834097,-500.0,0.00038973,5]
[377068909,1754233834106,-500.0,0.00038973,5]
[377068910,1754233834115,-500.0,0.00038973,5]
[377068911,1754233834124,-500.0,0.00038973,2]
[377068912,1754233834134,-308.59479276,0.00038973,5]
[377068913,1754233834144,-500.0,0.00038973,5]
[377068914,1754233834154,-500.0,0.00038973,5]
[377068915,1754233834163,-500.0,0.00038973,5]
[377068916,1754233834173,-500.0,0.00038973,5]
[377068917,1754233834183,-158.56150722,0.00038973,5]
[377068918,1754233834194,-500.0,0.00038973,5]
[377068919,1754233834204,-500.0,0.00038973,5]
[377068920,1754233834214,-500.0,0.00038973,5]
[377068921,1754233834224,-501.93875642,0.00038973,5]
[377068922,1754233834237,-500.0,0.00038973,5]
[377068923,1754233834247,-500.0,0.00038973,5]
[377068924,1754233834256,-216.43080967,0.00038973,5]
[377068925,1754233834267,-500.0,0.00038973,5]
[377068926,1754233834277,-500.0,0.00038973,5]
[377068927,1754233834286,-501.89009665,0.00038973,5]
[377068928,1754233834296,-150.0,0.00038973,5]
[377068929,1754233834305,-500.0,0.00038973,5]
[377068930,1754233834315,-500.0,0.00038973,5]
[377068931,1754233834325,-645.44337989,0.00038973,5]
[377068932,1754233834334,-500.0,0.00038973,5]
[377068933,1754233834344,-500.0,0.00038973,5]
[377068934,1754233834353,-500.0,0.00038973,5]
[377068935,1754233834363,-502.32887933,0.00038973,5]
[377068936,1754233834373,-500.0,0.00038973,5]
[377068937,1754233834382,-500.0,0.00038973,5]
[377068938,1754233834391,-500.0,0.00038973,2]
[377068939,1754233834400,-500.0,0.00038973,5]
[377068940,1754233834410,-500.0,0.00038973,5]
[377068941,1754233834419,-500.0,0.00038973,5]
[377068942,1754233834428,-500.0,0.00038973,5]
[377068943,1754233834437,-500.0,0.00038973,5]
[377068944,1754233834447,-500.0,0.00038973,5]
[377068945,1754233834456,-500.0,0.00038973,5]
[377068946,1754233834465,-500.0,0.00038973,5]
[377068947,1754233834474,-500.0,0.00038973,5]
[377068948,1754233834486,-500.0,0.00038973,5]
[377068949,1754233834495,-502.41901779,0.00038973,5]
[377068950,1754233834505,-500.0,0.00038973,5]
[377068951,1754233834514,-500.0,0.00038973,5]
[377068952,1754233834523,-500.0,0.00038973,5]
[377068953,1754233834532,-500.0,0.00038973,5]
[377068954,1754233834542,-20852.1751303,0.0003899,3]
[377068955,1754233834551,-260.96350297,0.0003899,3]
[377068956,1754233834560,-1000.0,0.00039,90]
[377068957,1754233834569,-8485.15448651,0.00039,60]
[377068958,1754233834578,-1000.0,0.00039,120]
[377068959,1754233834588,-8000.0,0.00039,30]
[377068960,1754233834597,-2290.46,0.00039,7]
[377068961,1754233834607,-3611.48,0.00039,14]
[377068962,1754233834616,-151.96504,0.00039,60]
[377068963,1754233834625,-200.0,0.00039014,120]
[377068964,1754233834634,-1078.87,0.000393,120]
[377068965,1754233834644,-1097.0,0.00039414,5]
[377068966,1754233834653,-1000.0,0.00039421,5]
[377068967,1754233834662,-1000.0,0.00039421,5]
[377068968,1754233834671,-1024.72792444,0.00039421,5]
[377068969,1754233834680,-1000.0,0.00039421,5]
[377068970,1754233834689,-216.36103699,0.00039421,5]
[377068971,1754233834699,-502.0572836,0.00039421,5]
[377068972,1754233834708,-511.46934236,0.00039421,5]
[377068973,1754233834717,-150.0,0.00039473,5]
[377068974,1754233834727,-151.0,0.000395,20]
[377068975,1754233834739,-864.81339353,0.00039521,5]
[377068976,1754233834752,-1005.47976507,0.00039521,5]
[377068977,1754233834761,-1000.0,0.00039521,5]
[377068978,1754233834770,-1000.0,0.00039521,5]
[377068979,1754233834779,-743.1218894,0.00039521,5]
[377068980,1754233834790,-1000.0,0.00039521,2]
[377068981,1754233834799,-1029.84155379,0.00039521,5]
[377068982,1754233834808,-1000.0,0.00039521,5]
[377068983,1754233834817,-1000.0,0.00039521,5]
[377068984,1754233834828,-1000.0,0.00039521,5]
[377068985,1754233834838,-1000.0,0.00039521,5]
[377068986,1754233834847,-1000.0,0.00039521,5]
[377068987,1754233834856,-502.27225514,0.00039521,5]
[377068988,1754233834867,-501.95792498,0.00039521,5]
[377068989,1754233834876,-1000.0,0.00039521,5]
[377068990,1754233834885,-250.0,0.00039521,5]
[377068991,1754233834894,-1000.0,0.00039521,5]
[377068992,1754233834903,-1000.0,0.00039521,5]
[377068993,1754233834912,-1000.0,0.00039521,5]
[377068994,1754233834921,-1000.0,0.00039521,5]
[377068995,1754233834930,-1000.0,0.00039521,5]
[377068996,1754233834939,-392.52153496,0.00039521,5]
[377068997,1754233834948,-1000.0,0.00039521,5]
[377068998,1754233834957,-1000.0,0.00039521,5]
[377068999,1754233834966,-1000.0,0.00039521,5]
[377069000,1754233834975,-500.0,0.00039521,5]
[377069001,1754233834984,-1000.0,0.00039521,5]
[377069002,1754233834993,-1000.0,0.00039521,5]
[377069003,1754233835002,-1000.0,0.00039521,5]
[377069004,1754233835011,-1000.0,0.00039521,5]
[377069005,1754233835021,-1000.0,0.00039521,5]
[377069006,1754233835030,-1011.68266514,0.00039521,5]
[377069007,1754233835039,-1000.0,0.00039521,5]
[377069008,1754233835048,-500.0,0.00039521,5]
[377069009,1754233835057,-1000.0,0.00039521,5]
[377069010,1754233835066,-150.0,0.00039573,5]
[377069011,1754233835075,-1078.87,0.00039711,120]
[377069012,1754233835085,-3588.02621619,0.00039788,2]
[377069013,1754233835095,-20852.1751303,0.00039789,3]
[377069014,1754233835106,-260.96350297,0.00039789,3]
[377069015,1754233835116,-970.0,0.00039791,2]
[377069016,1754233835125,-1500.0,0.000398,31]
[377069017,1754233835137,-407.0,0.00039817,2]
[377069018,1754233835147,-200.0,0.00039856,30]
[377069019,1754233835156,-200.0,0.00039856,30]
[377069020,1754233835166,-200.0,0.00039856,30]
[377069021,1754233835175,-200.0,0.00039856,30]
[377069022,1754233835184,-375.0,0.00039856,30]
[377069023,1754233835193,-150.0,0.00039873,3]
[377069024,1754233835202,-500.0,0.00039873,5]
[377069025,1754233835211,-500.0,0.00039873,5]
[377069026,1754233835220,-500.0,0.00039873,5]
[377069027,1754233835230,-500.0,0.00039873,5]
[377069028,1754233835240,-500.0,0.00039873,5]
[377069029,1754233835250,-500.0,0.00039873,5]
[377069030,1754233835339,-500.49503637,0.00039873,5]
[377069031,1754233835349,-500.0,0.00039873,5]
[377069032,1754233835359,-561.87023534,0.00039873,5]
[377069033,1754233835368,-500.0,0.00039873,5]
[377069034,1754233835378,-551.299838,0.00039873,5]
[377069035,1754233835387,-500.0,0.00039873,5]
[377069036,1754233835396,-200.0,0.00039879,10]
[377069037,1754233835406,-200.0,0.00039879,10]
[377069038,1754233835415,-200.0,0.00039879,10]
[377069039,1754233835425,-200.0,0.00039879,10]
[377069040,1754233835435,-200.0,0.00039879,10]
[377069041,1754233835445,-200.0,0.00039879,10]
[377069042,1754233835455,-200.0,0.00039879,10]
[377069043,1754233835464,-200.0,0.00039879,10]
[377069044,1754233835474,-200.0,0.00039879,10]
[377069045,1754233835485,-200.0,0.00039879,10]
[377069046,1754233835495,-200.0,0.00039879,10]
[377069047,1754233835505,-200.0,0.00039879,10]
[377069048,1754233835514,-200.0,0.00039879,10]
[377069049,1754233835523,-200.0,0.00039879,10]
[377069050,1754233835533,-200.0,0.00039879,10]
[377069051,1754233835542,-200.0,0.00039879,10]
[377069052,1754233835552,-200.0,0.00039879,10]
[377069053,1754233835562,-200.0,0.00039879,10]
[377069054,1754233835571,-262.579659,0.00039879,10]
[377069055,1754233835580,-40460.9480156,0.00039879,3]
[377069056,1754233835603,-1069.81,0.0003888,10]
[377069057,1754233835613,-1160.0,0.00039251,2]
[377069058,1754233835622,-1043.23401375,0.00039879,3]
[377069074,1754233838156,-1099.47093568,0.0003889,2]
[377069075,1754233838166,-1099.47093564,0.00039117,2]
[377069076,1754233838176,-1260.0,0.00039799,2]
[377069077,1754233838185,-277.21760349,0.00039817,2]
[377069078,1754233838194,-13566.96552519,0.00039879,3]
[377069122,1754233840429,-572.325,0.00039345,2]
[377069223,1754233841789,153.0,0.00024,120]
[377069365,1754233843193,153.0,0.000271,120]
[377069655,1754233977978,161.230203,0.00013699,2]
[377069658,1754234442571,12650.86639694,0.00028629,60]
[377069659,1754234444224,194.23164683,0.00022956,2]
[377069661,1754234640925,736.0,0.00030137,120]
[377069662,1754234753342,-161.230203,0.00023182,2]
[377069663,1754234753485,-161.65,0.00025889,7]
[377069664,1754234753508,-161.65,0.00025989,7]
[377069665,1754234753531,-161.65,0.00026089,7]
[377069666,1754234753552,-396.15,0.000282,2]
[377069667,1754234753573,-174.4723017,0.00030037,2]
[377069668,1754234753595,-233.93,0.00030137,30]
[377069669,1754234753616,-192.54894875,0.00030241,2]
[377069672,1754234816087,-162.02155506,0.00029071,10]
[377069673,1754234816109,-22.48654273,0.00030137,30]
[377069688,1754234959845,161.217179,0.00013699,2]
[377069792,1754235038436,-161.217179,0.00023182,2]
[377069793,1754235038446,-1656.930114,0.00026,30]
[377069794,1754235038455,-713.54075948,0.000264,2]
[377069795,1754235038465,-150.0,0.00026529,2]
[377069796,1754235038475,-151.0,0.000282,2]
[377069797,1754235038484,-186.37964647,0.000282,2]
[377069798,1754235038493,-186.37964648,0.000282,2]
[377069799,1754235038502,-356.54,0.000282,2]
[377069800,1754235038511,-221.75929295,0.000283,2]
[377069801,1754235038521,-300.0,0.00028628,2]
[377069802,1754235038530,-556.46688052,0.00028629,10]
[377069803,1754235038540,-200.0,0.00028629,10]
[377069804,1754235038550,-977.14509581,0.00028629,2]
[377069805,1754235038559,-9201.65468757,0.00028629,2]
[377069806,1754235038568,-162.74872164,0.00028629,2]
[377069807,1754235038578,-204.98950828,0.00028629,2]
[377069808,1754235038587,-10014.20142812,0.00028629,2]
[377069809,1754235038597,-501.83596661,0.00028673,5]
[377069810,1754235038606,-226.52354949,0.00028673,5]
[377069811,1754235038616,-500.0,0.00028673,5]
[377069812,1754235038625,-500.0,0.00028673,5]
[377069813,1754235038635,-500.0,0.00028673,5]
[377069814,1754235038644,-500.0,0.00028673,5]
[377069815,1754235038653,-500.0,0.00028673,5]
[377069816,1754235038662,-503.54914706,0.00028673,5]
[377069817,1754235038672,-500.0,0.00028673,5]
[377069818,1754235038681,-500.0,0.00028673,5]
[377069819,1754235038690,-500.0,0.00028673,5]
[377069820,1754235038700,-500.0,0.00028673,5]
[377069821,1754235038710,-200.0,0.00028673,5]
[377069822,1754235038719,-167.62301021,0.000288,7]
[377069823,1754235038729,-874.27977792,0.00029,2]
[377069824,1754235038738,-162.02155506,0.00029071,10]
[377069825,1754235038747,-547.10620068,0.00029221,5]
[377069826,1754235038757,-1000.0,0.00029221,5]
[377069827,1754235038766,-858.45193933,0.00029221,5]
[377069828,1754235038776,-1000.0,0.00029221,5]
[377069829,1754235038787,-1000.0,0.00029221,5]
[377069830,1754235038797,-501.87160946,0.00029221,5]
[377069831,1754235038806,-1500.0,0.00029768,5]
[377069832,1754235038816,-401.92020003,0.0003,10]
[377069833,1754235038826,-3389.78684908,0.0003,30]
[377069834,1754235038835,-1560.58065866,0.0003,10]
[377069835,1754235038845,-165.46,0.0003,5]
[377069836,1754235038854,-160.0,0.00030044,2]
[377069837,1754235038865,-200.0,0.00030059,15]
[377069838,1754235038874,-200.0,0.00030059,15]
[377069839,1754235038884,-200.0,0.00030059,15]
[377069840,1754235038893,-352.69100606,0.0003013,15]
[377069841,1754235038903,-225.13,0.00030137,30]
[377069842,1754235038913,-153.0,0.000303,120]
[377069843,1754235038923,-260.0,0.00030592,2]
[377069844,1754235038932,-420.0,0.00030898,2]
[377069845,1754235038942,-302.05632351,0.0003099,2]
[377069846,1754235038951,-360.0,0.0003114,2]
[377069847,1754235038961,-150.0,0.00031529,2]
[377069848,1754235038971,-460.0,0.00031688,2]
[377069849,1754235038981,-1068.2227322,0.00032143,2]
[377069850,1754235038990,-560.0,0.00032236,2]
[377069851,1754235039000,-225.13,0.00032265,30]
[377069852,1754235039009,-251.24,0.00032489,2]
[377069853,1754235039019,-161.217179,0.00032666,2]
[377069854,1754235039029,-660.0,0.00032784,2]
[377069855,1754235039038,-500.0,0.00032942,15]
[377069856,1754235039048,-200.0,0.00032942,15]
[377069857,1754235039058,-200.0,0.00032942,15]
[377069858,1754235039068,-200.0,0.00032942,15]
[377069859,1754235039078,-240.0,0.00032942,15]
[377069860,1754235039088,-500.0,0.00033216,15]
[377069861,1754235039098,-760.0,0.00033332,2]
[377069862,1754235039107,-587.0,0.00033348,2]
[377069863,1754235039117,-153.0,0.000334,120]
[377069864,1754235039126,-500.0,0.0003349,15]
[377069865,1754235039136,-298.2983517,0.00033581,2]
[377069866,1754235039145,-505.71521664,0.00033764,15]